[Event "Reykjavik Open 2025"]
[Site "Reykjavik"]
[Date "2025.04.15"]
[Round "9.7"]
[White "Jacobson, Brandon"]
[Black "Papadiamandis, Elliot"]
[Result "1-0"]
[Annotator "RC"]
[ECO "A00"]
[WhiteElo "2570"]
[BlackElo "2315"]
[PlyCount "97"]
[EventDate "2025.04.09"]
[EventType "swiss"]
[EventCountry "ISL"]
[SourceTitle "playchess.com"]
[Source "ChessBase"]
[SourceQuality "1"]
[TimeControl "40/5400+30:1800+30"]

1. a4 {[%emt 0:07:36]} c5 {[%emt 0:03:33]} 2. e4 {[%emt 0:03:11]} Nc6 {[%emt 0:02:55]} 3. Bb5 {[%emt 0:01:49]} Nf6 {[%emt 0:15:55]} 4. Nc3 {[%emt 0:05:02]} Qc7 {[%emt 0:03:47]} 5. Nge2 {[%emt 0:01:36]} e6 {[%emt 0:05:23]} 6. O-O {[%emt 0:07:40]} Be7 {[%emt 0:03:00]} 7. Bxc6 {[%emt 0:05:13]} Qxc6 {[%emt 0:02:21]} 8. d4 {[%emt 0:05:01]} d6 {[%emt 0:15:14]} 9. d5 {[%emt 0:02:04]} exd5 {[%emt 0:00:26]} 10. exd5 {[%emt 0:00:25]} Qd7 {[%emt 0:00:52]} 11. h3 {[%emt 0:05:42]} O-O {[%emt 0:01:15]} 12. Ng3 {[%emt 0:00:47]} b6 {[%emt 0:05:45]} 13. Re1 {[%emt 0:03:26]} a6 {[%emt 0:00:46]} 14. Qf3 {[%emt 0:04:31]} Rb8 {[%emt 0:01:27]} 15. Bg5 {[%emt 0:17:31]} h6 {[%emt 0:06:51]} 16. Bf4 {[%emt 0:00:06]} b5 {[%emt 0:01:33]} 17. axb5 {[%emt 0:01:27]} axb5 {[%emt 0:00:01]} 18. Nd1 {[%emt 0:00:49]} Bb7 {[%emt 0:08:40]} 19. Ne3 {[%emt 0:07:00]} Rfd8 {[%emt 0:00:01]} 20. Ngf5 {[%emt 0:02:47]} Bf8 {[%emt 0:00:16]} 21. Bg3 {[%emt 0:00:13]} Nh7 {[%emt 0:01:19]} 22. Bh4 {[%emt 0:11:50]} Re8 {[%emt 0:04:37]} 23. Qg4 {[%emt 0:00:13]} Qc7 {[%emt 0:00:02]} 24. Nxg7 {[%emt 0:03:17]} Bxg7 {[%emt 0:00:35]} 25. Nf5 {[%emt 0:00:04]} f6 {[%emt 0:04:29]} 26. Bg3 {[%emt 0:02:18]} Re5 {[%emt 0:04:56]} 27. Bxe5 {[%emt 0:00:27]} fxe5 {[%emt 0:00:01]} 28. Rxe5 {[%emt 0:00:46]} h5 {[%emt 0:02:17]} 29. Re7 {[%emt 0:01:13]} hxg4 {[%emt 0:00:22]} 30. Rxc7 {[%emt 0:00:03]} Bf8 {[%emt 0:01:16]} 31. Ra7 {[%emt 0:00:08]} Bc8 {[%emt 0:00:47]} 32. Nxd6 {[%emt 0:01:40]} Bxd6 {[%emt 0:01:42]} 33. Rg7+ {[%emt 0:00:03]} Kh8 {[%emt 0:00:36]} 34. Rxh7+ {[%emt 0:00:02]} Kg8 {[%emt 0:00:04]} 35. Rag7+ {[%emt 0:00:55]} Kf8 {[%emt 0:00:01]} 36. Ra7 {[%emt 0:00:24]} Kg8 {[%emt 0:00:11]} 37. Rag7+ {[%emt 0:00:45]} Kf8 {[%emt 0:00:01]} 38. hxg4 {[%emt 0:00:07]} Be5 {[%emt 0:03:28]} 39. Re7 {[%emt 0:00:20]} Bd6 {[%emt 0:02:34]} 40. Ref7+ {[%emt 0:00:16]} Kg8 {[%emt 0:02:00]} 41. Rhg7+ {[%emt 0:31:39]} Kh8 {[%emt 0:28:22]} 42. Rg6 {[%emt 0:00:12]} Be5 {[%emt 0:00:00]} 43. Re7 {[%emt 0:00:00]} Bxb2 {[%emt 0:00:00]} 44. Re8+ {[%emt 0:00:00]} Kh7 {[%emt 0:00:00]} 45. Rc6 {[%emt 0:00:00]} Ra8 {[%emt 0:00:00]} 46. Rexc8 {[%emt 0:00:00]} Ra1+ {[%emt 0:00:00]} 47. Kh2 {[%emt 0:00:00]} Be5+ {[%emt 0:00:00]} 48. g3 {[%emt 0:00:00]} Rd1 {[%emt 0:00:00]} 49. Re8 {[%emt 0:00:00]} 1-0

[Event "Reykjavik Open 2025"]
[Site "Reykjavik"]
[Date "2025.04.15"]
[Round "9.8"]
[White "Maze, Sebastien"]
[Black "Sriansh Das"]
[Result "1/2-1/2"]
[Annotator "TA"]
[ECO "C85"]
[WhiteElo "2557"]
[BlackElo "2278"]
[PlyCount "81"]
[EventDate "2025.04.09"]
[EventType "swiss"]
[EventCountry "ISL"]
[SourceTitle "playchess.com"]
[Source "ChessBase"]
[SourceQuality "1"]
[TimeControl "40/5400+30:1800+30"]

{[%evp 13,81,23,18,8,12,-6,13,0,9,0,11,0,0,0,10,9,11,11,10,11,0,-4,27,35,144,145,145,137,146,137,194,52,156,-35,-32,-35,-25,-25,50,35,66,-171,-160,-164,-170,-178,-153,-144,-144,-144,-124,-135,-135,-197,-205,-153,-153,-153,-154,-216,-156,-164,-85,-86,-79,-79,-56,-95,-51,-64]} 1. e4 {[%emt 0:00:02]} e5 {[%emt 0:00:12]} 2. Nf3 {[%emt 0:00:04]} Nc6 {[%emt 0:00:05]} 3. Bb5 {[%emt 0:00:04]} a6 {[%emt 0:00:05]} 4. Ba4 {[%emt 0:00:03]} Nf6 {[%emt 0:00:05][%cal Bg8f6,Bf6d7,Bd7f8,Bf8g6,Bg6h4][%mdl 32]} 5. O-O {[%emt 0:00:05]} Be7 {[%emt 0:00:06]} 6. Bxc6 {[%emt 0:00:05]} dxc6 {[%emt 0:00:08]} 7. d3 {[%emt 0:00:03]} Nd7 {[%emt 0:04:06]} 8. Nc3 {[%emt 0:00:57]} O-O {[%emt 0:00:08]} 9. Be3 {[%emt 0:00:29]} Bd6 {[%emt 0:12:40]} 10. Ne2 {[%emt 0:02:10] The position is equal.} Re8 {[%emt 0:02:37]} 11. Nd2 {[%emt 0:00:16]} Nf8 {[%emt 0:02:57]} 12. Ng3 {[%emt 0:00:21]} Ng6 {[%emt 0:02:03]} 13. Nf5 {[%emt 0:12:49]} Nh4 {[%emt 0:20:33]} 14. Qh5 {[%emt 0:01:49]} Nxf5 {[%emt 0:09:13]} 15. exf5 {[%emt 0:00:02]} g6 {[%emt 0:02:53]} 16. fxg6 {[%emt 0:00:04]} hxg6 {[%emt 0:00:35]} 17. Qf3 {[%emt 0:00:04]} f5 {[%emt 0:04:20]} (17... Qh4 {simplifies} 18. g3 Qg4 19. Qxg4 Bxg4 20. Bg5 Bh3) 18. Qg3 {[%emt 0:00:52]} f4 {[%emt 0:19:11]} (18... Qf6 $14) 19. Qxg6+ $16 {[%emt 0:00:05]} Kh8 {[%emt 0:00:03][%cal Oe8e6] [#] Strongly threatening ...Re6!} 20. Ne4 $1 {[%emt 0:00:36]} Re6 {[%emt 0:00:38] Repels Nf6} 21. Qh5+ {[%emt 0:10:39]} Kg7 {[%emt 0:00:07]} (21... Kg8 $16) 22. Bd2 {[%emt 0:00:02]} (22. Ng5 $1 $18 {White wants to mate with Qh7+.} Qg8 23. Nxe6+ Bxe6 24. Bd2) 22... Rg6 {[%emt 0:02:30]} ({Black should try} 22... Rh6 $14 23. Qg5+ Qxg5 24. Nxg5 Rh5) 23. f3 $2 {[%emt 0:14:07] White is much more active.} ({Only move:} 23. Bc3 $16 Qe7 24. Rae1) 23... Rh6 $15 {[%emt 0:11:06]} 24. Qg5+ {[%emt 0:00:02]} Qxg5 {[%emt 0:00:06]} 25. Nxg5 {[%emt 0:00:01]} Bc5+ {[%emt 0:01:06]} (25... Bf5 $1 $11 26. d4 exd4) 26. Kh1 $14 {[%emt 0:00:22]} Bf5 {[%emt 0:01:44] And now ...Rah8 would win.} 27. Bc3 $2 {[%emt 0:06:35]} (27. h3 $1 $14 {stays ahead.}) 27... Kf6 $19 {[%emt 0:01:43]} 28. Nh3 {[%emt 0:00:04]} ({Avoid the trap} 28. Ne4+ $2 Bxe4 29. h3 (29. dxe4 $2 {leads to mate.} Rxh2+ 30. Kxh2 Rh8#) 29... Bf5 $19) 28... Bxh3 {[%emt 0:00:26]} 29. gxh3 {[%emt 0:00:02]} Rxh3 {[%emt 0:00:41] ...Rah8 is the strong threat.} 30. Rae1 {[%emt 0:10:17]} Be3 {[%emt 0:00:18]} 31. Re2 {[%emt 0:00:20]} Rg8 {[%emt 0:00:20][%cal Oh3f3]} 32. Rg2 {[%emt 0:04:37]} Rgg3 {[%emt 0:01:12]} 33. Be1 {[%emt 0:00:28]} (33. Re2 $17) 33... Rxf3 {[%emt 0:00:56]} 34. Bh4+ {[%emt 0:00:26] [#]} Kf7 $1 {[%emt 0:00:10]} ({Worse is} 34... Rxh4 35. Rxf3 c5 36. Rg8 $14) 35. Rxf3 {[%emt 0:00:13]} Rxf3 $17 {[%emt 0:00:01][%mdl 4096] Endgame. KRB-KRB} 36. Rg5 {[%emt 0:00:19]} (36. Rg7+ $17 Kxg7 37. Kg2) 36... Rh3 {[%emt 0:01:17]} 37. Rg4 {[%emt 0:01:03] [#] Threatens to win with Kg2.} Bc1 {[%emt 0:01:47]} ({Better is} 37... Bd4 $1 $19 38. Kg2 Re3) 38. b3 {[%emt 0:02:50]} Re3 {[%emt 0:00:09]} 39. Kg1 {[%emt 0:00:54]} Ba3 {[%emt 0:00:47]} 40. Kf1 {[%emt 0:05:09]} Bc5 {[%emt 0:00:24]} 41. Be1 {[%emt 0:31:35] White used his chance.   Weighted Error Value: White=0.37/Black=0.22 (precise) .  Loses game:     	White=1     	---        Mistake:       	White=4     	Black=5      Inaccurate:     	---       	Black=2      OK:         	White=12    	Black=8      Best:        	White=6     	Black=6      Strong:       	---       	Black=1} 1/2-1/2

[Event "Reykjavik Open 2025"]
[Site "Reykjavik"]
[Date "2025.04.15"]
[Round "9.9"]
[White "Garifullina, Leya"]
[Black "Friedel, Joshua"]
[Result "0-1"]
[Annotator "RC"]
[ECO "B12"]
[WhiteElo "2459"]
[BlackElo "2552"]
[PlyCount "114"]
[EventDate "2025.04.09"]
[EventType "swiss"]
[EventCountry "ISL"]
[SourceTitle "playchess.com"]
[Source "ChessBase"]
[SourceQuality "1"]
[TimeControl "40/5400+30:1800+30"]

1. e4 {[%emt 0:00:13]} c6 {[%emt 0:00:07]} 2. d4 {[%emt 0:00:05]} d5 {[%emt 0:00:05]} 3. e5 {[%emt 0:00:04]} Bf5 {[%emt 0:00:05]} 4. Nf3 {[%emt 0:00:04]} e6 {[%emt 0:00:10]} 5. Be2 {[%emt 0:00:05]} Nd7 {[%emt 0:00:11]} 6. O-O {[%emt 0:00:06]} Ne7 {[%emt 0:00:06]} 7. Nbd2 {[%emt 0:00:14]} h6 {[%emt 0:00:11]} 8. Nb3 {[%emt 0:00:04]} g5 {[%emt 0:00:05]} 9. a4 {[%emt 0:00:08]} Bg7 {[%emt 0:00:09]} 10. Bd2 {[%emt 0:01:27]} a5 {[%emt 0:06:17]} 11. Ne1 {[%emt 0:04:18]} c5 {[%emt 0:13:12]} 12. c3 {[%emt 0:02:40]} O-O {[%emt 0:02:29]} 13. Nc2 {[%emt 0:07:35]} c4 {[%emt 0:06:46]} 14. Nc1 {[%emt 0:01:47]} f6 {[%emt 0:02:16]} 15. exf6 {[%emt 0:01:29]} Nxf6 {[%emt 0:00:27]} 16. Ne3 {[%emt 0:08:54]} Bh7 {[%emt 0:01:03]} 17. b3 {[%emt 0:03:05]} cxb3 {[%emt 0:00:43]} 18. Qxb3 {[%emt 0:00:55]} Ne4 {[%emt 0:05:13]} 19. Be1 {[%emt 0:00:22]} Ng6 {[%emt 0:00:52]} 20. f3 {[%emt 0:02:20]} Nd6 {[%emt 0:00:23]} 21. Nd3 {[%emt 0:02:14]} Rc8 {[%emt 0:02:10]} 22. Bf2 {[%emt 0:05:55]} h5 {[%emt 0:09:02]} 23. Rfc1 {[%emt 0:06:16]} Kh8 {[%emt 0:06:23]} 24. Qd1 {[%emt 0:04:00]} Nf4 {[%emt 0:07:18]} 25. Bf1 {[%emt 0:03:15]} Qf6 {[%emt 0:01:21]} 26. Ne5 {[%emt 0:01:14]} g4 {[%emt 0:02:22]} 27. g3 {[%emt 0:05:15]} gxf3 {[%emt 0:03:48]} 28. Qxf3 {[%emt 0:05:45]} Ng6 {[%emt 0:01:11]} 29. Qxf6 {[%emt 0:00:06]} Rxf6 {[%emt 0:00:22]} 30. Nd7 {[%emt 0:00:25]} Rxf2 {[%emt 0:01:29]} 31. Kxf2 {[%emt 0:00:05]} Ne4+ {[%emt 0:00:09]} 32. Ke1 {[%emt 0:04:56]} Nxc3 {[%emt 0:02:13]} 33. Nd1 {[%emt 0:04:54]} Bxd4 {[%emt 0:00:40]} 34. Ra3 {[%emt 0:00:11]} Rd8 {[%emt 0:02:51]} 35. Nxc3 {[%emt 0:00:19]} Rxd7 {[%emt 0:00:06]} 36. Nb5 {[%emt 0:00:03]} Bb6 {[%emt 0:00:31]} 37. Rc8+ {[%emt 0:01:14]} Kg7 {[%emt 0:00:08]} 38. Bh3 {[%emt 0:00:18]} Ne5 {[%emt 0:01:14]} 39. Rb3 {[%emt 0:01:21]} Nd3+ {[%emt 0:03:57]} 40. Ke2 {[%emt 0:07:41]} Rf7 {[%emt 0:06:55]} 41. Nd6 {[%emt 0:35:18]} Rf2+ {[%emt 0:30:37]} 42. Kd1 {[%emt 0:00:06]} Nc5 {[%emt 0:00:00]} 43. Rxc5 {[%emt 0:00:00]} Bxc5 {[%emt 0:00:00]} 44. Rxb7+ {[%emt 0:00:00]} Kg6 {[%emt 0:00:00]} 45. Bxe6 {[%emt 0:00:00]} Bxd6 {[%emt 0:00:00]} 46. Bxd5 {[%emt 0:00:00]} Kh6 {[%emt 0:00:00]} 47. Rb6 {[%emt 0:00:00]} Rf6 {[%emt 0:00:00]} 48. Ke2 {[%emt 0:00:00]} Be7 {[%emt 0:00:00]} 49. Rxf6+ {[%emt 0:00:00]} Bxf6 {[%emt 0:00:00]} 50. Kf3 {[%emt 0:00:00]} Be5 {[%emt 0:00:00]} 51. Bc6 {[%emt 0:00:00]} Kg5 {[%emt 0:00:00]} 52. h4+ {[%emt 0:00:00]} Kf6 {[%emt 0:00:00]} 53. g4 {[%emt 0:00:00]} hxg4+ {[%emt 0:00:00]} 54. Kxg4 {[%emt 0:00:00]} Bf5+ {[%emt 0:00:00]} 55. Kf3 {[%emt 0:00:01]} Ke7 {[%emt 0:00:00]} 56. h5 {[%emt 0:00:17]} Kd6 {[%emt 0:00:40]} 57. Be8 {[%emt 0:00:06]} Bd7 {[%emt 0:00:20]} 0-1

[Event "Reykjavik Open 2025"]
[Site "Reykjavik"]
[Date "2025.04.15"]
[Round "9.10"]
[White "Stefansson, Hannes"]
[Black "Kadric, Denis"]
[Result "0-1"]
[Annotator "TA"]
[ECO "C41"]
[WhiteElo "2420"]
[BlackElo "2533"]
[PlyCount "76"]
[EventDate "2025.04.09"]
[EventType "swiss"]
[EventCountry "ISL"]
[SourceTitle "playchess.com"]
[Source "ChessBase"]
[SourceQuality "1"]
[TimeControl "40/5400+30:1800+30"]

{[%evp 15,76,31,40,31,44,0,0,0,33,35,37,40,41,0,0,27,21,22,18,14,14,9,18,10,22,-21,0,-66,-98,-117,-7,0,0,-6,-6,-8,-4,-242,-241,-213,-138,-141,-94,-90,-10,-16,-21,-127,-120,-125,-133,-212,-212,-191,-166,-199,-189,-244,-208,-456,-467,-728,-637]} 1. e4 {[%emt 0:00:31]} d6 {[%emt 0:01:07]} 2. d4 {[%emt 0:00:23]} Nf6 {[%emt 0:00:01]} 3. Nc3 {[%emt 0:00:20]} e5 {[%emt 0:00:04]} 4. Nf3 {[%emt 0:00:52]} Nbd7 {[%emt 0:00:04]} 5. Bc4 {[%emt 0:01:03]} Be7 {[%emt 0:00:04]} 6. O-O {[%emt 0:00:52]} O-O {[%emt 0:00:04]} 7. a4 {[%emt 0:01:40] is recently more successful than 7.Re1.} c6 {[%emt 0:03:31]} 8. Re1 {[%emt 0:01:35]} h6 {[%emt 0:00:04]} 9. Ba2 {[%emt 0:04:29] C41: Philidor Defence.} Re8 {[%emt 0:00:59]} 10. Be3 {[%emt 0:02:51][%cal Oa4a5]} Ng4 {[%emt 0:00:58]} 11. Bd2 {[%emt 0:01:00] The position is equal.} a5 {[%emt 0:01:11]} 12. h3 {[%emt 0:07:17]} Ngf6 {[%emt 0:00:05]} 13. Be3 {[%emt 0:01:39]} exd4 {[%emt 0:01:26]} 14. Bxd4 {[%emt 0:01:35]} Nf8 $1 {[%emt 0:00:04]} 15. Nd2 {[%emt 0:05:00]} Ne6 {[%emt 0:18:07]} 16. Be3 {[%emt 0:00:37]} d5 {[%emt 0:01:21]} 17. exd5 {[%emt 0:02:25]} cxd5 {[%emt 0:00:02] [#]} 18. Nf3 {[%emt 0:03:18][%cal Ra2d5]} Bb4 {[%emt 0:00:04]} 19. Qd3 $146 {[%emt 0:07:04][%cal Oe1d1]} (19. Bd2 b6 20. Nb5 Bb7 21. c3 Bc5 22. Be3 Ne4 23. Nfd4 Rc8 24. Qg4 Qf6 25. Rad1 g6 26. Qf3 Qg7 27. Nc2 {1-0 Ibarra Jerez,J (2556)-Lopez Varela,P (2293) Santiago de Compostela Bicapawn GP Rap rapid 2022 (3)}) 19... b6 {[%emt 0:11:38]} 20. Bd4 {[%emt 0:14:00] aiming for Bxf6.} Ba6 {[%emt 0:02:40]} (20... Bb7 {simplifies} 21. Re5 Nxd4 22. Qxd4 Rxe5 23. Nxe5 Qc7) 21. Bxf6 {[%emt 0:02:49]} ({Better is} 21. Qe3 $11) 21... Qxf6 $15 {[%emt 0:00:43]} 22. Qxd5 {[%emt 0:00:45]} Bxc3 {[%emt 0:08:14]} (22... Nf4 $1 $17 23. Qd7 Ne2+ 24. Kh2 Red8 25. Bxf7+ Kf8 (25... Qxf7 $2 26. Qxf7+ Kxf7 27. Nxe2 $17)) 23. bxc3 $11 {[%emt 0:00:16]} Nf4 {[%emt 0:00:21]} 24. Rxe8+ {[%emt 0:03:47]} Rxe8 {[%emt 0:00:02]} 25. Qd7 {[%emt 0:00:36]} Re7 $40 {[%emt 0:01:56][%mdl 128] Black attacks.} (25... Ne2+ 26. Kh1 Re7 27. Qd8+ Kh7 28. Rd1 $11) 26. Qg4 {[%emt 0:08:19]} (26. Qd8+ $11 {and White has nothing to worry.} Kh7 27. Kh2) 26... Ne2+ $19 {[%emt 0:04:34]} (26... Qxc3 27. Rd1 Qc7 (27... Qxc2 $2 28. Rd8+ Kh7 29. Qxf4 $18) 28. Kh1 $17) 27. Kh2 {[%emt 0:00:13]} Nxc3 {[%emt 0:01:59] [#]} 28. Bb3 {[%emt 0:00:46]} Ne4 {[%emt 0:05:34] Black is more active.} ({Black should try} 28... Kf8 29. Qd4 Qxd4 30. Nxd4 Re4) 29. Rd1 $17 {[%emt 0:00:21]} Nxf2 {[%emt 0:00:58]} (29... g6 $17 {[%cal Og8g7]} 30. Kg1 Kg7) 30. Rd8+ $11 {[%emt 0:00:16]} Kh7 {[%emt 0:00:02]} 31. Qg3 {[%emt 0:02:03]} (31. Qd4 $11) 31... Ne4 $17 {[%emt 0:00:23] Really sharp!} 32. Qb8 {[%emt 0:00:09]} g6 {[%emt 0:11:05]} 33. Bd5 {[%emt 0:00:55]} (33. Nd2 $17) 33... Be2 $19 {[%emt 0:01:56]} 34. Ng1 {[%emt 0:02:49]} Bf1 {[%emt 0:03:03][%cal Of1g2]} 35. Nf3 {[%emt 0:02:00]} Nc3 {[%emt 0:03:46][%cal Oc3d5]} 36. Ba8 {[%emt 0:04:15]} (36. Bc6 $142) 36... Nxa4 {[%emt 0:04:13] ...Nc3 is the strong threat.} 37. Bc6 $2 {[%emt 0:01:49]} (37. Nd2 Bb5 38. Ne4 Qe5+ 39. Qxe5 Rxe5 40. Nd6) 37... Nc3 {[%emt 0:02:08]} ({Stronger than} 37... Qxc6 38. Rh8+ Kg7 39. Rg8+ Kh7 40. Rh8+ Kg7 41. Rg8+ Kh7 42. Rh8+ $11) (37... Bxg2 38. Kxg2 Qxc6 39. Rh8+ Kg7 40. Rg8+ Kf6 (40... Kh7 41. Rh8+ Kg7 42. Rg8+ Kh7 43. Rh8+ $11) 41. Qf4+ Ke6 42. c4 $11) 38. Qxb6 {[%emt 0:00:23]} (38. Nd4 $142) 38... Re2 {[%emt 0:02:38][%csl LRc2,LRg2] Weighted Error Value: White=0.50/Black=0.20 (precise)   Loses game:     	White=1     	---        Mistake:       	White=6     	Black=3      Inaccurate:     	White=2     	Black=2      OK:         	White=9     	Black=10     Best:        	White=5     	Black=5      Strong:       	---       	Black=1} 0-1

[Event "Reykjavik Open 2025"]
[Site "Reykjavik"]
[Date "2025.04.15"]
[Round "9.11"]
[White "Sivuk, Vitaly"]
[Black "George Samir, David"]
[Result "1/2-1/2"]
[Annotator "RC"]
[ECO "A11"]
[WhiteElo "2505"]
[BlackElo "2303"]
[PlyCount "89"]
[EventDate "2025.04.09"]
[EventType "swiss"]
[EventCountry "ISL"]
[SourceTitle "playchess.com"]
[Source "ChessBase"]
[SourceQuality "1"]
[TimeControl "40/5400+30:1800+30"]

1. Nf3 {[%emt 0:00:09]} Nf6 {[%emt 0:00:09]} 2. c4 {[%emt 0:00:20]} c6 {[%emt 0:00:03]} 3. g3 {[%emt 0:03:06]} d5 {[%emt 0:00:26]} 4. Bg2 {[%emt 0:00:09]} g6 {[%emt 0:11:00]} 5. b3 {[%emt 0:01:25]} d4 {[%emt 0:03:30]} 6. O-O {[%emt 0:05:19]} Bg7 {[%emt 0:03:05]} 7. Bb2 {[%emt 0:09:27]} c5 {[%emt 0:01:36]} 8. e3 {[%emt 0:00:13]} Nc6 {[%emt 0:07:57]} 9. exd4 {[%emt 0:00:37]} cxd4 {[%emt 0:00:05]} 10. d3 {[%emt 0:00:14]} O-O {[%emt 0:01:16]} 11. Na3 {[%emt 0:00:10]} e5 {[%emt 0:02:33]} 12. Nc2 {[%emt 0:00:18]} a5 {[%emt 0:06:51]} 13. a3 {[%emt 0:13:03]} Bf5 {[%emt 0:03:32]} 14. Nh4 {[%emt 0:03:55]} Bg4 {[%emt 0:03:15]} 15. Qd2 {[%emt 0:00:38]} Qd7 {[%emt 0:03:06]} 16. b4 {[%emt 0:03:52]} Bh3 {[%emt 0:02:20]} 17. b5 {[%emt 0:01:44]} Nd8 {[%emt 0:02:13]} 18. Rae1 {[%emt 0:11:22]} Bxg2 {[%emt 0:02:06]} 19. Kxg2 {[%emt 0:00:06]} Nh5 {[%emt 0:00:51]} 20. a4 {[%emt 0:15:05]} Ne6 {[%emt 0:03:35]} 21. Ba3 {[%emt 0:00:16]} Rfe8 {[%emt 0:00:08]} 22. Kh1 {[%emt 0:01:24]} b6 {[%emt 0:03:00]} 23. Qd1 {[%emt 0:00:07]} Ng5 {[%emt 0:06:02]} 24. Bc1 {[%emt 0:01:17]} Qb7+ {[%emt 0:00:11]} 25. f3 {[%emt 0:00:10]} Ne6 {[%emt 0:00:05]} 26. Na1 {[%emt 0:00:43]} f5 {[%emt 0:01:46]} 27. Nb3 {[%emt 0:00:17]} Rac8 {[%emt 0:00:09]} 28. Kg1 {[%emt 0:02:28]} Qe7 {[%emt 0:01:40]} 29. Qc2 {[%emt 0:07:31]} f4 {[%emt 0:03:47]} 30. g4 {[%emt 0:13:18]} Qxh4 {[%emt 0:00:26]} 31. gxh5 {[%emt 0:00:05]} Qxh5 {[%emt 0:02:36]} 32. Nd2 {[%emt 0:00:10]} Ng5 {[%emt 0:00:25]} 33. Qd1 {[%emt 0:00:45]} Re6 {[%emt 0:09:10]} 34. Ne4 {[%emt 0:00:33]} Nf7 {[%emt 0:00:36]} 35. Qb3 {[%emt 0:01:08]} Qf5 {[%emt 0:00:07]} 36. c5 {[%emt 0:01:44]} bxc5 {[%emt 0:06:20]} 37. Bd2 {[%emt 0:00:05]} g5 {[%emt 0:00:31]} 38. Bxa5 {[%emt 0:02:08]} g4 {[%emt 0:00:27]} 39. fxg4 {[%emt 0:01:42]} Qxg4+ {[%emt 0:00:26]} 40. Kh1 {[%emt 0:00:04]} Rg6 {[%emt 0:09:55]} 41. Rf2 {[%emt 0:32:16]} Qh3 {[%emt 0:03:46]} 42. Qc4 {[%emt 0:00:00]} f3 {[%emt 0:32:52]} 43. Qa2 {[%emt 0:00:01]} c4 44. Ref1 cxd3 {[%emt 0:00:01]} 45. Qc4 {[%emt 0:00:07]} 1/2-1/2